bitfinex-derivatives/quotes_SOLF0:USTF0_20251208
["timestamp","ask_amount","ask_price","bid_price","bid_amount"]
[1765152878193,2.06096054,131.79,131.72,5.41096054]
[1765152878194,3.22640444,131.78,131.72,5.41096054]
[1765152878597,3.22640444,131.78,131.73,3.35]
[1765152879706,3.17,131.77,131.73,3.35]
[1765152880299,3.22640444,131.78,131.75,3.35]
[1765152880500,3.22827815,131.78,131.75,3.35]
[1765152881207,0.05827815,131.78,131.75,3.35]
[1765152882496,0.05827815,131.78,131.75,10.1804]
[1765152882698,0.05827815,131.78,131.76,3.35]
[1765152883696,0.05827815,131.78,131.76,10.1797]
[1765152883902,0.05827815,131.78,131.77,3.35]
[1765152885110,3.17,131.84,131.79,3.35]
[1765152885710,3.17,131.84,131.79,10.1782]
[1765152885911,3.17,131.86,131.8,3.35]
[1765152886107,0.05707267,131.84,131.82,3.4076268]
[1765152894215,3.17,131.89,131.84,3.16]
[1765152895230,0.05671459,131.88,131.85,3.21787515]
[1765152896626,3.22671459,131.88,131.85,3.21787515]
[1765152898629,3.22671459,131.88,131.85,0.05787515]
[1765152899532,3.17,131.86,131.85,0.05787515]
[1765152900633,3.17,131.86,131.81,3.16]
[1765152901129,3.17,131.82,131.75,3.16]
[1765152901320,3.17,131.81,131.75,3.16]
[1765152901514,3.17,131.81,131.77,0.05341605]
[1765152901728,3.19,131.78,131.77,0.05341605]
[1765152901924,0.05149689,131.79,131.77,3.37341605]
[1765152902130,3.19,131.84,131.77,3.37341605]
[1765152902328,3.19,131.84,131.78,6.54279765]
[1765152902528,3.19,131.84,131.78,13.37149765]
[1765152902827,3.19,131.84,131.79,3.32]
[1765152903024,6.8256,131.85,131.78,10.05149765]
[1765152903025,0.05225142,131.83,131.8,3.36816713]
[1765152904633,3.24225142,131.83,131.8,3.36816713]
[1765152904826,0.05225142,131.83,131.8,3.36816713]
[1765152908732,0.05225142,131.83,131.8,10.19586713]
[1765152908928,0.05225142,131.83,131.81,3.32]
[1765152910236,3.24225142,131.83,131.8,0.04816713]
[1765152911734,3.19,131.82,131.8,0.04816713]
[1765152911936,0.05225142,131.83,131.8,3.36816713]
[1765152913128,0.05225142,131.83,131.8,6.59096478]
[1765152913430,0.05225142,131.83,131.81,3.32]
[1765152913634,3.19,131.89,131.82,3.22279765]
[1765152913827,3.19,131.89,131.83,3.32]
[1765152914733,0.05249303,131.87,131.85,3.37102484]
[1765152914923,0.05165007,131.87,131.85,3.37102484]
[1765152915123,0.05165007,131.87,131.86,3.32]
[1765152917031,109.32809765,131.94,131.86,3.32]
[1765152917032,3.19,131.94,131.87,3.32]
[1765152917231,3.19,131.94,131.89,3.32]
[1765152917431,3.19,131.94,131.9,3.32]
[1765152918035,0.04789977,131.93,131.91,3.36715097]
[1765152921338,0.04789977,131.93,131.91,0.05715097]
[1765152921534,0.04789977,131.93,131.91,3.36715097]
[1765152924334,3.22789977,131.93,131.91,0.05715097]
[1765152924536,0.04789977,131.93,131.91,3.36715097]
[1765152925243,3.18,131.98,131.92,3.31]
[1765152926247,0.05666601,131.96,131.94,3.36425882]
[1765152926436,0.05666601,131.96,131.94,10.18465882]
[1765152926745,3.18,132.01,131.95,3.31]
[1765152927144,3.18,132.03,131.97,3.31]
[1765152927845,0.05781181,132.01,131.99,3.360328]
[1765152928237,0.05781181,132.01,132.0,10.1273]
[1765152929841,105.9447,132.14,132.04,3.31]
[1765152930146,3.18,132.13,132.05,3.31]
[1765152930537,3.18,132.13,132.07,3.31]
[1765152930737,3.23517275,132.11,132.09,0.05797125]
[1765152931540,3.18,132.1,132.04,3.31]
[1765152931747,3.18,132.09,132.01,3.31]
[1765152932643,3.22810456,132.06,132.04,0.05244367]
[1765152933545,3.18,132.04,131.98,3.31]
[1765152933742,3.18,132.03,131.95,153.3922231]
[1765152934550,0.04970918,132.0,131.98,0.05169996]
[1765152935136,3.22970918,132.0,131.98,0.05169996]
[1765152935443,3.18,131.99,131.9,3.31]
[1765152936447,0.05575027,131.96,131.93,3.36347998]
[1765152937246,3.23575027,131.96,131.93,3.36347998]
[1765152937550,0.05575027,131.96,131.93,3.36347998]
[1765152937744,3.23575027,131.96,131.93,3.36347998]
[1765152937949,0.05575027,131.96,131.93,3.36347998]
[1765152938947,0.05575027,131.96,131.94,3.31]
[1765152942151,6.8167,132.02,131.95,3.31]
[1765152942758,9.9967,132.02,131.95,3.31]
[1765152943247,9.9967,132.02,131.93,171.0837]
[1765152943248,0.05225517,132.0,131.97,3.36161799]
[1765152945262,3.23225517,132.0,131.97,3.36161799]
[1765152945558,0.05225517,132.0,131.97,3.36161799]
[1765152946957,3.23225517,132.0,131.97,0.05161799]
[1765152949460,0.05225517,132.0,131.97,3.23161799]
[1765152951066,3.15225517,132.0,131.97,3.23161799]
[1765152952261,0.05225517,132.0,131.97,3.23161799]
[1765152953957,3.15225517,132.0,131.97,3.23161799]
[1765152954559,3.15225517,132.0,131.97,0.05161799]
[1765152955462,9.96995517,132.0,131.97,0.05161799]
[1765152955759,3.1,131.99,131.97,0.05161799]
[1765152957258,0.05225517,132.0,131.97,3.23161799]
[1765152957951,0.05225517,132.0,131.97,10.05051799]
[1765152958159,3.15225517,132.0,131.97,3.23161799]
[1765152958357,106.10825517,132.0,131.91,3.18]
[1765152958556,3.1,131.97,131.91,10.0022]
[1765152958758,3.1,131.97,131.91,3.18]
[1765152959354,0.05303878,131.95,131.93,0.05060503]
[1765152959659,3.42303878,131.95,131.93,0.05060503]
[1765152961662,0.05303878,131.95,131.93,3.44060503]
[1765152962562,3.42303878,131.95,131.93,0.05060503]
[1765152963562,0.05303878,131.95,131.93,3.44060503]
[1765152963766,3.42303878,131.95,131.93,0.05060503]
[1765152964161,3.37,131.92,131.88,3.39]
[1765152964360,3.37,131.92,131.85,3.39]
[1765152964662,6.8225,131.91,131.85,3.39]
[1765152964867,3.37,131.9,131.85,3.39]
[1765152965266,3.37,131.88,131.86,0.05621667]
[1765152965464,3.42254761,131.89,131.86,3.44621667]
[1765152965673,0.05254761,131.89,131.86,3.44621667]
[1765152966472,0.05254761,131.89,131.87,3.39]
[1765152966869,0.05254761,131.89,131.86,3.44621667]
[1765152967671,3.42254761,131.89,131.86,0.05621667]
[1765152968074,3.37,131.87,131.8,3.39]
[1765152969367,0.05057062,131.85,131.82,3.44720835]
[1765152970376,0.05057062,131.85,131.83,3.39]
[1765152970565,3.42057062,131.85,131.82,3.44720835]
[1765152970970,0.05057062,131.85,131.82,3.44720835]
[1765152973672,0.05057062,131.85,131.82,0.05720835]
[1765152973673,3.42057062,131.85,131.82,0.05720835]
[1765152974778,3.42057062,131.85,131.82,3.44720835]
[1765152976175,0.05057062,131.85,131.82,3.44720835]
[1765152976674,3.42057062,131.85,131.82,0.05720835]
[1765152978674,3.42057062,131.85,131.82,3.42720835]
[1765152978872,0.05057062,131.85,131.82,3.42720835]
[1765152980581,0.05057062,131.85,131.83,3.37]
[1765152981080,0.05057062,131.85,131.84,3.37]
[1765152984292,176.74711167,131.92,131.86,3.37]
[1765152984293,3.1,131.92,131.86,3.37]
[1765152984492,3.1,131.95,131.87,3.37]
[1765152985093,6.8211,131.94,131.88,10.1935]
[1765152985393,0.05110755,131.92,131.9,0.05176657]
[1765152985590,3.15110755,131.92,131.9,0.05176657]
[1765152989794,0.05110755,131.92,131.9,3.42176657]
[1765152989996,3.15110755,131.92,131.9,0.05176657]
[1765152990797,3.1,131.9,131.84,8.87711167]
[1765152991996,0.04886566,131.88,131.86,0.04919871]
[1765152993096,3.14886566,131.88,131.86,0.04919871]
[1765152996592,3.1,131.87,131.78,3.37]
[1765152996797,3.1,131.87,131.79,3.37]
[1765152997102,68.2,131.9,131.82,3.37]
[1765152997405,75.023,131.9,131.83,10.1961]
[1765152997600,0.04972334,131.88,131.85,3.42711109]
[1765152998002,0.04972334,131.88,131.87,3.37]
[1765152998605,0.04972334,131.88,131.86,12.33161167]
[1765152998606,3.1,131.93,131.89,3.37]
[1765152999406,9.9208,131.94,131.89,3.37]
[1765152999607,3.15293073,131.93,131.9,0.05097905]
[1765153006813,3.15293073,131.93,131.9,3.42097905]
[1765153007809,0.05293073,131.93,131.9,3.42097905]
[1765153008903,9.9089,131.98,131.9,3.42097905]
[1765153009109,3.09,131.97,131.9,3.37]
[1765153009303,9.9093,131.97,131.91,6.822]
[1765153009509,3.09,131.96,131.9,3.37]
[1765153010018,3.1447849,131.94,131.92,0.05623678]
[1765153011414,0.0547849,131.94,131.92,3.17623678]
[1765153013218,3.1447849,131.94,131.92,0.05623678]
[1765153013517,0.0547849,131.94,131.92,0.05623678]
[1765153015221,3.1447849,131.94,131.92,0.05623678]
[1765153018212,0.0547849,131.94,131.92,3.17623678]
[1765153018711,3.4647849,131.94,131.92,0.05623678]
[1765153020616,3.41,131.93,131.92,0.05623678]
[1765153021320,3.41,131.92,131.87,3.33]
[1765153021616,3.41,131.98,131.9,3.33]
[1765153021820,3.41,131.98,131.93,3.33]
[1765153022418,3.46233816,131.97,131.94,0.04852181]
[1765153023319,3.46233816,131.97,131.94,3.37852181]
[1765153024518,0.05233816,131.97,131.95,3.33]
[1765153027025,0.05233816,131.97,131.96,3.33]
[1765153029925,3.46233816,131.97,131.94,0.04852181]
[1765153031629,3.46233816,131.97,131.94,3.37852181]
[1765153033530,3.46233816,131.97,131.94,0.04852181]
[1765153034432,3.41,131.96,131.94,0.04852181]
[1765153037334,6.87163816,131.97,131.94,3.37852181]
[1765153037544,10.28163816,131.97,131.94,3.37852181]
[1765153037738,3.46233816,131.97,131.94,3.37852181]
[1765153037946,3.46233816,131.97,131.94,0.04852181]
[1765153038235,3.46233816,131.97,131.94,3.18852181]
[1765153039329,3.46233816,131.97,131.94,0.04852181]
[1765153039535,3.27,131.96,131.94,0.04852181]
[1765153041439,0.05233816,131.97,131.94,3.18852181]
[1765153041639,3.32233816,131.97,131.94,3.18852181]
[1765153042136,3.32233816,131.97,131.94,0.04852181]
[1765153043349,0.05233816,131.97,131.94,3.18852181]
[1765153043551,3.32233816,131.97,131.94,0.04852181]
[1765153045054,3.32233816,131.97,131.94,3.18852181]
[1765153047950,0.05233816,131.97,131.96,3.14]
[1765153048351,3.27,132.01,131.98,3.14]
[1765153048655,3.27,132.04,131.98,3.14]
[1765153049252,3.27,132.03,131.98,3.14]
[1765153049546,3.32534016,132.02,131.99,3.19114002]
[1765153050143,0.05534016,132.02,131.99,3.19114002]
[1765153050539,0.05534016,132.02,131.99,112.45819183]
[1765153050739,0.05534016,132.02,132.0,3.14]
[1765153051446,0.05534016,132.02,132.01,3.14]
[1765153052658,68.29,132.08,132.02,3.14]
[1765153052860,3.27,132.07,132.02,3.14]
[1765153053658,3.27,132.05,132.03,0.05686542]
[1765153053966,0.05569832,132.06,132.03,3.19686542]
[1765153056355,0.05569832,132.06,132.04,3.14]
[1765153057955,3.32569832,132.06,132.03,0.05686542]
[1765153059356,3.32569832,132.06,132.03,3.19686542]
[1765153059759,3.32569832,132.06,132.03,0.05686542]
[1765153060460,3.32569832,132.06,132.03,3.19686542]
[1765153060658,0.05569832,132.06,132.03,3.19686542]
[1765153062059,0.05569832,132.06,132.04,3.14]
[1765153063562,0.05569832,132.06,132.04,9.9553]
[1765153063759,3.27,132.12,132.06,3.14]
[1765153064366,3.27,132.12,132.07,3.14]
[1765153064768,3.32754379,132.11,132.08,0.05579223]
[1765153066868,0.05754379,132.11,132.08,3.19579223]
[1765153067162,3.27,132.1,132.08,0.05579223]
[1765153067959,5.3726231,132.09,132.08,0.05579223]
[1765153068261,3.32,132.08,132.01,5.3126231]
[1765153068462,3.32,132.08,132.02,3.26]
[1765153069166,3.3778735,132.06,132.04,0.0578792]
[1765153072058,3.3778735,132.06,132.04,3.3178792]
[1765153072059,0.0578735,132.06,132.04,3.3178792]
[1765153073464,3.3778735,132.06,132.04,0.0578792]
[1765153077277,0.0578735,132.06,132.04,3.3178792]
[1765153077571,0.0578735,132.06,132.05,5.3126231]
[1765153080764,3.32,132.12,132.08,3.26]
[1765153080981,3.32,132.12,132.08,5.3126231]
[1765153081183,3.32,132.09,132.05,3.26]
[1765153081384,3.32,132.09,132.04,5.3126231]
[1765153081578,2.0526231,132.07,132.02,5.3126231]
[1765153081780,2.0526231,132.07,132.03,0.05488305]
[1765153081781,3.37658901,132.06,132.03,0.05488305]
[1765153089985,3.09,132.03,131.98,2.0526231]
[1765153090284,3.09,132.03,131.96,2.0526231]
[1765153090285,3.09,132.02,131.96,2.0526231]
[1765153090587,3.09,132.0,131.96,5.2326231]
[1765153090985,0.0533532,131.99,131.97,0.04830249]
[1765153091192,0.0533532,131.99,131.97,3.22830249]
[1765153091787,0.0533532,131.99,131.97,12.09982559]
[1765153092783,0.0533532,131.99,131.98,3.18]
[1765153095182,6.8152,132.05,132.0,3.18]
[1765153095396,6.8152,132.05,132.01,5.2326231]
[1765153095397,3.09,132.04,132.01,5.2326231]
[1765153096296,0.04960042,132.04,132.02,3.18]
[1765153096497,3.13960042,132.04,132.02,3.18]
[1765153096881,3.13960042,132.04,132.01,2.10121194]
[1765153097087,3.13960042,132.04,132.01,5.28121194]
[1765153097494,3.13960042,132.04,132.01,0.04858884]
[1765153105588,3.38,132.03,132.01,0.04858884]
[1765153105793,3.38,132.02,132.01,0.04858884]
[1765153107198,3.42960042,132.04,132.01,0.04858884]
[1765153107791,10.24530042,132.04,132.01,0.04858884]
[1765153107995,3.38,132.02,131.97,8.8713231]
[1765153109110,3.38,132.0,131.98,0.05251327]
[1765153109805,3.38,131.98,131.93,2.0526231]
[1765153110407,3.38,131.97,131.93,2.0526231]
[1765153110797,3.38,131.95,131.94,0.05239914]
[1765153112012,3.38,131.94,131.89,2.0526231]
[1765153112306,171.1398428,131.96,131.87,3.27]
[1765153112307,3.38,131.92,131.87,3.27]
[1765153112503,3.38,131.92,131.86,8.8771231]
[1765153112906,0.05017176,131.9,131.88,0.05174011]
[1765153113208,3.43017176,131.9,131.88,0.05174011]
[1765153117009,0.05017176,131.9,131.88,3.32174011]
[1765153117205,3.43017176,131.9,131.88,3.32174011]
[1765153118213,3.43017176,131.9,131.88,0.05174011]
[1765153126633,3.43017176,131.9,131.84,2.0526231]
[1765153126830,3.38,131.88,131.81,6.48875837]
[1765153127230,3.38,131.87,131.82,6.8266]
[1765153127732,3.35,131.85,131.83,0.04839768]
[1765153128433,3.35,131.85,131.78,3.14]
[1765153128636,3.35,131.83,131.75,6.35875837]
[1765153129036,3.35,131.82,131.76,6.8297]
[1765153129432,3.39857571,131.8,131.76,9.9697]
[1765153130428,3.39857571,131.8,131.75,6.35875837]
[1765153131335,3.39857571,131.8,131.76,3.14]
[1765153133230,3.39857571,131.8,131.73,6.35875837]
[1765153134428,3.35,131.79,131.73,6.35875837]
[1765153134628,3.40387724,131.77,131.74,3.14]
[1765153135025,0.05387724,131.77,131.74,3.14]
[1765153136431,0.05387724,131.77,131.74,9.9708]
[1765153136927,3.40387724,131.77,131.74,9.9708]
[1765153137837,3.40387724,131.77,131.73,3.21875837]
[1765153138034,3.40387724,131.77,131.72,9.9119]
[1765153139234,3.40387724,131.77,131.73,3.08]
[1765153141342,3.40387724,131.77,131.71,3.21875837]
[1765153141533,3.40387724,131.77,131.71,6.29875837]
[1765153141935,3.40387724,131.77,131.71,13.13105837]
[1765153142136,3.40387724,131.77,131.72,3.08]
[1765153143047,3.40387724,131.77,131.71,6.29875837]
[1765153143442,3.35,131.76,131.71,6.29875837]
[1765153143649,3.35,131.76,131.69,6.29875837]
[1765153143840,3.35,131.73,131.7,3.08]
[1765153144036,3.35,131.73,131.69,3.08]
[1765153144239,109.6315,131.72,131.61,106.3607]
[1765153144438,3.40619474,131.68,131.63,3.08]
[1765153144640,3.40619474,131.68,131.65,3.08]
[1765153144840,0.05619474,131.68,131.65,3.08]
[1765153145442,0.05619474,131.68,131.65,9.9154]
[1765153145946,0.05619474,131.68,131.67,3.08]
[1765153150854,3.35,131.74,131.67,3.08]
[1765153151048,3.35,131.74,131.69,3.08]
[1765153151855,3.40372838,131.73,131.7,0.05673638]
[1765153152350,0.05372838,131.73,131.7,6.35549475]
[1765153152556,0.05372838,131.73,131.72,6.29875837]
[1765153154451,0.05372838,131.73,131.72,3.08]
[1765153155247,0.05372838,131.73,131.7,3.27549475]
[1765153155248,3.40372838,131.73,131.7,0.05673638]
[1765153156253,10.23542838,131.73,131.7,0.05673638]
[1765153156558,3.35,131.72,131.7,0.05673638]
[1765153158662,3.35,131.72,131.6,109.7424]
[1765153158860,6.52875837,131.7,131.6,112.96115837]
[1765153159054,3.31,131.68,131.6,13.42695837]
[1765153159359,109.6227,131.68,131.6,6.58875837]
[1765153159563,3.31,131.67,131.6,6.58875837]
[1765153159756,3.36517996,131.65,131.61,3.37]
[1765153159959,0.05517996,131.65,131.63,3.37]
[1765153160258,0.05517996,131.65,131.64,6.58875837]
[1765153160860,3.31,131.74,131.65,109.704]
[1765153161049,3.31,131.74,131.69,3.37]
[1765153161864,0.05245201,131.73,131.7,0.05182508]
[1765153162065,3.36245201,131.73,131.7,0.05182508]
[1765153162970,3.36245201,131.73,131.7,3.42182508]
[1765153163663,3.36245201,131.73,131.7,0.05182508]
[1765153166460,0.05245201,131.73,131.7,3.42182508]
[1765153166665,3.36245201,131.73,131.7,3.42182508]
[1765153167164,3.36245201,131.73,131.7,0.05182508]
[1765153167669,3.31,131.72,131.7,0.05182508]
[1765153174068,0.05245201,131.73,131.7,3.42182508]
[1765153174267,3.36245201,131.73,131.7,0.05182508]
[1765153175671,3.31,131.71,131.7,0.05182508]
[1765153176668,3.31,131.71,131.63,3.37]
[1765153176873,3.31,131.71,131.6,106.3708]
[1765153176874,3.31,131.69,131.6,109.7408]
[1765153177070,3.31,131.67,131.6,3.37]
[1765153177672,0.04874428,131.65,131.6,3.37]
[1765153177874,3.31,131.64,131.6,3.37]
[1765153178580,3.31,131.64,131.6,10.2081]
[1765153178874,3.31,131.64,131.61,3.37]
[1765153179075,3.31,131.64,131.58,3.37]
[1765153179284,0.05751174,131.62,131.58,3.37]
[1765153180578,0.05751174,131.62,131.61,3.37]
[1765153181185,6.8345,131.68,131.61,3.37]
[1765153181186,3.31,131.69,131.63,3.37]
[1765153182075,0.04780175,131.67,131.65,0.05768116]
[1765153182380,3.35780175,131.67,131.65,0.05768116]
[1765153183780,0.04780175,131.67,131.65,3.42768116]
[1765153184674,0.04780175,131.67,131.65,10.26318116]
[1765153185082,0.04780175,131.67,131.66,3.37]
[1765153185889,3.31,131.71,131.67,3.37]
[1765153186279,75.3214,131.74,131.68,3.37]
[1765153186975,3.35814997,131.72,131.7,0.05417479]
[1765153190085,3.42814997,131.72,131.7,0.05417479]
[1765153191589,10.26054997,131.72,131.7,0.05417479]
[1765153191787,3.38,131.71,131.7,0.05417479]
[1765153192985,3.38,131.69,131.64,10.1859]
[1765153193697,3.38,131.68,131.61,10.1874]
[1765153194082,3.38,131.65,131.63,0.0574512]
[1765153195696,3.38,131.65,131.55,3.35]
[1765153195889,3.38,131.64,131.58,3.35]
[1765153196488,3.38,131.67,131.61,3.35]
[1765153196686,0.05290798,131.65,131.61,3.35]
[1765153197195,0.05290798,131.65,131.63,3.13]
[1765153197790,3.18290798,131.65,131.61,9.9675]
[1765153198192,3.18290798,131.65,131.61,3.13]
[1765153198587,3.18290798,131.65,131.58,3.13]
[1765153198911,3.13,131.64,131.55,109.5397]
[1765153199196,0.05163618,131.61,131.56,3.13]
[1765153199501,3.18163618,131.61,131.56,3.13]
[1765153200294,3.18163618,131.61,131.54,68.35]
[1765153200900,3.18163618,131.61,131.55,3.13]
[1765153201392,3.18163618,131.61,131.55,9.9706]
[1765153201799,3.18163618,131.61,131.55,109.5445]
[1765153201992,3.18163618,131.61,131.56,6.84]
[1765153202193,3.18163618,131.61,131.52,3.13]
[1765153202393,0.05661039,131.58,131.52,3.13]
[1765153202600,3.18661039,131.58,131.52,3.13]
[1765153203201,3.18661039,131.58,131.49,115.1196758]
[1765153203494,3.18341795,131.55,131.5,3.13]
[1765153203696,3.18341795,131.55,131.5,9.9733]
[1765153203999,3.18341795,131.55,131.48,3.13]
[1765153204202,3.18341795,131.55,131.49,6.8438]
[1765153204505,3.18341795,131.55,131.49,9.9738]
[1765153205101,0.05341795,131.55,131.51,3.13]
[1765153205401,3.18341795,131.55,131.51,3.13]
[1765153205597,0.05341795,131.55,131.52,6.8421]
[1765153205800,0.05341795,131.55,131.53,3.13]
[1765153206303,0.05341795,131.55,131.53,9.9716]
[1765153206602,0.05341795,131.55,131.54,3.13]
[1765153207005,3.13,131.61,131.55,6.8409]
[1765153208202,0.05029327,131.59,131.57,0.05120601]
[1765153209397,3.18029327,131.59,131.57,0.05120601]
[1765153210805,0.05029327,131.59,131.57,3.18120601]
[1765153212205,75.2654,131.66,131.59,3.13]
[1765153212392,68.43,131.66,131.59,3.13]
[1765153212597,3.13,131.65,131.59,3.13]
[1765153212905,3.13,131.65,131.59,9.9685]
[1765153213203,3.13,131.65,131.61,0.05443709]
[1765153213505,0.05447676,131.63,131.61,0.05443709]
[1765153213805,0.05447676,131.63,131.61,3.18443709]
[1765153214013,3.18447676,131.63,131.61,0.05443709]
[1765153214606,0.05447676,131.63,131.61,3.18443709]
[1765153214808,0.05447676,131.63,131.61,0.05443709]
[1765153215510,3.18447676,131.63,131.61,0.05443709]
[1765153216810,0.05447676,131.63,131.61,0.05443709]
[1765153216993,0.05447676,131.63,131.61,3.18443709]
[1765153217194,3.13,131.72,131.64,3.13]
[1765153217599,3.13,131.72,131.66,3.13]
[1765153218405,0.05104969,131.7,131.68,0.05149755]
[1765153219808,0.05104969,131.7,131.68,3.23149755]
[1765153221803,3.17,131.75,131.68,3.23149755]
[1765153222595,3.17,131.73,131.68,3.23149755]
[1765153222796,3.22734193,131.72,131.69,0.05279447]
[1765153223498,0.05734193,131.72,131.69,3.23279447]
[1765153225594,0.05734193,131.72,131.71,3.18]
[1765153226603,3.17,131.78,131.71,109.4646]
[1765153227101,3.17,131.78,131.72,10.0118]
[1765153227307,3.17,131.78,131.73,3.18]
[1765153227702,0.05758384,131.77,131.74,3.23515325]
[1765153228313,3.22758384,131.77,131.74,3.23515325]
[1765153228505,3.22758384,131.77,131.74,0.05515325]
[1765153230502,3.17,131.76,131.74,0.05515325]
[1765153232607,3.22758384,131.77,131.74,3.23515325]
[1765153233110,3.22758384,131.77,131.74,0.05515325]
[1765153233503,3.22758384,131.77,131.74,3.23515325]
[1765153233705,3.22758384,131.77,131.74,0.05515325]
[1765153234105,0.05758384,131.77,131.74,3.23515325]
[1765153234307,0.05758384,131.77,131.75,3.18]
[1765153235302,3.17,131.83,131.76,109.4227]
[1765153235506,3.17,131.83,131.77,3.18]
[1765153235707,65.3,131.86,131.78,3.18]
[1765153236019,68.47,131.86,131.78,3.18]
[1765153236318,0.0504456,131.83,131.81,0.05671947]
[1765153236700,3.2204456,131.83,131.81,0.05671947]
[1765153238720,3.17,131.82,131.81,0.05671947]
[1765153239316,3.17,131.82,131.74,3.18]
[1765153239815,3.17,131.8,131.74,3.18]
[1765153240112,3.17,131.8,131.71,3.18]
[1765153240307,0.05632071,131.77,131.74,0.04897336]
[1765153240507,3.22632071,131.77,131.74,0.04897336]
[1765153241909,0.05632071,131.77,131.74,3.22897336]
[1765153242219,0.05632071,131.77,131.75,3.18]
[1765153242616,0.05632071,131.77,131.75,10.0103]
[1765153242816,0.05632071,131.77,131.76,3.18]
[1765153243515,3.17,131.83,131.79,3.18]
[1765153244522,0.04779328,131.82,131.8,0.0538802]
[1765153245313,3.21779328,131.82,131.8,0.0538802]
[1765153245518,0.04779328,131.82,131.8,0.0538802]
[1765153245813,0.04779328,131.82,131.8,3.2338802]
[1765153246416,3.17,131.88,131.82,6.8267]
[1765153246610,3.17,131.88,131.81,109.3846]
[1765153247311,0.05467291,131.86,131.83,3.22933888]
[1765153247509,0.05467291,131.86,131.83,10.05553888]
[1765153247915,0.05467291,131.86,131.84,3.27]
[1765153248123,0.05467291,131.86,131.84,10.0956]
[1765153248315,0.05467291,131.86,131.85,3.27]
[1765153249718,65.28,131.9,131.85,6.8251]
[1765153249919,3.36,131.89,131.85,3.27]
[1765153250925,0.0507792,131.88,131.86,0.04789873]
[1765153254129,0.0507792,131.88,131.86,3.31789873]
[1765153254923,0.0507792,131.88,131.86,10.14259873]
[1765153255119,0.0507792,131.88,131.86,3.31789873]
[1765153256633,0.0507792,131.88,131.86,10.14249873]
[1765153256934,0.0507792,131.88,131.86,3.31789873]
[1765153260234,3.36,131.92,131.86,3.31789873]
[1765153260436,7.00585504,131.95,131.86,3.31789873]
[1765153260437,3.4,131.95,131.9,3.18]
[1765153260825,3.4,131.94,131.9,3.18]
[1765153261239,3.45431771,131.93,131.91,0.04844333]
[1765153261440,3.4,131.92,131.84,3.18]
[1765153261644,3.4,131.91,131.85,6.825]
[1765153262341,0.05443425,131.89,131.87,0.05403496]
[1765153262732,3.45443425,131.89,131.87,0.05403496]
[1765153263343,10.27793425,131.89,131.87,0.05403496]
[1765153263637,3.4,131.88,131.76,114.77827791]
[1765153263833,3.4,131.86,131.78,3.18]
[1765153264636,0.05429841,131.83,131.81,0.05776529]
[1765153264830,3.45429841,131.83,131.81,0.05776529]
[1765153268240,3.4,131.82,131.74,3.18]
[1765153269343,0.05659025,131.79,131.77,3.22804503]
[1765153269938,3.45659025,131.79,131.77,0.04804503]
[1765153270631,0.05659025,131.79,131.77,3.22804503]
[1765153271035,0.05659025,131.79,131.77,0.04804503]
[1765153273044,3.45659025,131.79,131.77,0.04804503]
[1765153273446,0.05659025,131.79,131.77,3.22804503]
[1765153280445,0.05659025,131.79,131.77,10.05734503]
[1765153280754,0.05659025,131.79,131.78,3.32]
[1765153281047,6.8261,131.84,131.78,3.32]
[1765153281344,3.41,131.85,131.79,3.32]
[1765153281947,3.41,131.85,131.81,3.36805554]
[1765153281948,0.05712927,131.83,131.81,3.36805554]
[1765153283849,0.05712927,131.83,131.81,10.19515554]
[1765153284050,0.05712927,131.83,131.82,3.32]
[1765153284846,0.05712927,131.83,131.81,3.36805554]
[1765153287455,0.05712927,131.83,131.81,10.19505554]
[1765153287753,0.05712927,131.83,131.82,3.32]
[1765153290158,3.41,131.87,131.83,3.32]
[1765153291351,0.04918896,131.86,131.84,3.36931909]
[1765153292457,0.04918896,131.86,131.84,10.19501909]
[1765153292754,0.04918896,131.86,131.85,3.32]
[1765153293548,10.2321,131.92,131.86,3.32]